bitfinex/quotes_SOLUSD_20260221
["timestamp","ask_amount","ask_price","bid_price","bid_amount"]
[1771664972670,0.72721495,84.809,84.783,0.68252708]
[1771664973920,0.72721495,84.809,84.784,11.79467824]
[1771664974125,0.72721495,84.809,84.785,0.68252708]
[1771664975149,3.69383402,84.828,84.78,0.68252708]
[1771664975150,0.72721495,84.799,84.78,0.68252708]
[1771664978463,0.70929996,84.807,84.78,0.68252708]
[1771664979866,4.28050493,84.81,84.781,0.69458387]
[1771664979867,0.70929996,84.805,84.781,0.69458387]
[1771664981443,12.50119656,84.804,84.781,0.69458387]
[1771664981646,0.70929996,84.803,84.781,0.69458387]
[1771664984253,11.7918966,84.804,84.781,0.69458387]
[1771664984455,11.7918966,84.804,84.778,11.79545678]
[1771664984456,4.28050493,84.81,84.783,0.69458387]
[1771664984669,0.70929996,84.812,84.783,0.69458387]
[1771664985371,0.70929996,84.809,84.783,0.69458387]
[1771664986659,0.70929996,84.809,84.785,0.69458387]
[1771664989371,0.70929996,84.799,84.782,0.69458387]
[1771664994180,0.70929996,84.798,84.774,0.69458387]
[1771664997072,4.28050493,84.8,84.771,61.11320762]
[1771664997073,0.70929996,84.796,84.771,61.11320762]
[1771664997269,0.70929996,84.796,84.772,0.69458387]
[1771664999376,0.70929996,84.794,84.772,0.69458387]
[1771665000981,0.70929996,84.792,84.772,0.69458387]
[1771665001360,11.79338419,84.794,84.772,0.69458387]
[1771665003065,12.50268415,84.794,84.772,0.69458387]
[1771665003268,0.70929996,84.793,84.772,0.69458387]
[1771665004272,0.70929996,84.791,84.772,0.69458387]
[1771665007000,12.50235206,84.796,84.772,0.69458387]
[1771665007299,6.15347778,84.82,84.762,61.11320762]
[1771665007300,4.98980489,84.82,84.791,0.69458387]
[1771665007500,11.78981124,84.819,84.791,0.69458387]
[1771665007697,15.2125642,84.843,84.791,0.69458387]
[1771665007698,0.7120976,84.826,84.791,0.69458387]
[1771665008001,0.7120976,84.809,84.773,41.28673043]
[1771665008185,0.7120976,84.809,84.774,0.7322473]
[1771665008782,0.7120976,84.819,84.781,0.7322473]
[1771665009196,11.78995024,84.818,84.783,0.75104875]
[1771665009582,12.50763109,84.818,84.783,0.75104875]
[1771665010102,11.78995024,84.818,84.783,0.75104875]
[1771665010490,11.78995024,84.818,84.791,0.75104875]
[1771665014995,11.78854161,84.829,84.801,0.75104875]
[1771665015693,0.71768085,84.828,84.801,0.75104875]
[1771665017109,12.5063802,84.827,84.801,0.75104875]
[1771665017408,0.71768085,84.826,84.801,0.75104875]
[1771665018513,11.7889773,84.825,84.801,0.75104875]
[1771665019013,12.50665815,84.825,84.801,0.75104875]
[1771665021009,0.71768085,84.824,84.801,0.75104875]
[1771665022215,0.71768085,84.823,84.801,0.75104875]
[1771665022721,4.28050493,84.82,84.801,0.75104875]
[1771665025998,4.2766354,84.82,84.801,0.75104875]
[1771665041530,0.71768085,84.823,84.801,0.75104875]
[1771665044928,11.78939426,84.822,84.801,0.75104875]
[1771665045432,0.69196429,84.822,84.801,0.75104875]
[1771665048029,12.48135919,84.822,84.801,0.75104875]
[1771665050143,0.69196429,84.821,84.801,0.75104875]
[1771665050341,4.2766354,84.82,84.801,0.75104875]
[1771665051837,0.69196429,84.823,84.801,0.75104875]
[1771665053945,11.78939426,84.822,84.801,0.75104875]
[1771665055257,12.48135855,84.822,84.801,0.75104875]
[1771665059647,0.69196429,84.821,84.801,0.75104875]
[1771665062051,0.69196429,84.82,84.801,0.75104875]
[1771665062951,0.69196429,84.819,84.801,0.75104875]
[1771665079775,0.72619938,84.809,84.77,11.79662616]
[1771665079981,0.72619938,84.809,84.771,0.72329846]
[1771665083688,0.72619938,84.808,84.773,0.72329846]
[1771665087894,0.72619938,84.808,84.774,11.79606954]
[1771665088193,0.72619938,84.808,84.775,0.72329846]
[1771665088994,0.72619938,84.806,84.775,0.72329846]
[1771665089693,0.72619938,84.806,84.777,0.72329846]
[1771665090397,0.72619938,84.799,84.763,0.72329846]
[1771665090688,41.27115146,84.805,84.763,0.72329846]
[1771665090689,0.72619938,84.789,84.763,0.72329846]
[1771665090895,0.72619938,84.789,84.765,0.72329846]
[1771665095583,0.72619938,84.788,84.766,0.72329846]
[1771665095784,0.72619938,84.788,84.765,58.33626352]
[1771665095985,4.27814757,84.78,84.765,58.33626352]
[1771665096174,0.72619938,84.779,84.765,58.33626352]
[1771665098295,0.72619938,84.779,84.766,58.33626352]
[1771665099689,0.72619938,84.779,84.766,59.06859848]
[1771665101404,0.72619938,84.779,84.766,0.73233496]
[1771665105002,29.48295527,84.795,84.766,0.73233496]
[1771665105003,0.70929801,84.788,84.766,0.73233496]
[1771665107604,0.70929801,84.804,84.771,0.73233496]
[1771665107815,0.70929801,84.809,84.771,0.73233496]
[1771665109195,3.69383402,84.825,84.767,41.28965281]
[1771665109196,4.27814757,84.82,84.781,0.73233496]
[1771665109597,11.78981124,84.819,84.783,0.73233496]
[1771665110001,11.78981124,84.819,84.791,0.73233496]
[1771665110508,11.78923582,84.824,84.791,0.73233496]
[1771665110697,11.78923582,84.824,84.801,0.73233496]
[1771665111007,12.49853383,84.824,84.801,0.73233496]
[1771665111903,0.70929801,84.823,84.801,0.73233496]
[1771665113409,11.78939426,84.822,84.801,0.73233496]
[1771665115295,0.70929801,84.822,84.801,0.73233496]
[1771665119215,11.78953325,84.821,84.801,0.73233496]
[1771665120522,0.70929801,84.821,84.801,0.73233496]
[1771665122917,11.78869935,84.827,84.801,0.73233496]
[1771665123223,11.78810913,84.832,84.801,0.73233496]
[1771665124511,11.78810913,84.832,84.802,11.79217471]
[1771665124714,11.78810913,84.832,84.803,0.73233496]
[1771665126822,0.70929801,84.832,84.803,0.73233496]
[1771665128123,11.78814348,84.831,84.803,0.73233496]
[1771665128528,0.72200787,84.83,84.803,0.73233496]
[1771665133124,11.78842141,84.829,84.803,0.73233496]
[1771665133430,0.71744085,84.828,84.803,0.73233496]
[1771665136410,11.78869935,84.827,84.803,0.73233496]
[1771665136628,0.71744085,84.826,84.803,0.73233496]
[1771665139527,0.71744085,84.819,84.799,58.33626352]
[1771665140742,0.71744085,84.819,84.8,0.71421898]
[1771665143029,11.78995024,84.818,84.8,0.71421898]
[1771665143517,12.50739109,84.818,84.8,0.71421898]
[1771665144240,0.71744085,84.817,84.8,0.71421898]
[1771665148538,0.71744085,84.815,84.784,12.50889722]
[1771665148727,11.79022825,84.816,84.784,12.50889722]
[1771665148728,0.71744085,84.809,84.785,0.71421898]
[1771665148929,0.71744085,84.809,84.785,58.33626352]
[1771665150328,0.71744085,84.799,84.785,58.33626352]
[1771665150532,0.71744085,84.798,84.773,58.33626352]
[1771665150733,0.71744085,84.798,84.765,0.71421898]
[1771665152433,0.71744085,84.798,84.771,0.71421898]
[1771665153329,11.7919457,84.804,84.773,0.71421898]
[1771665154247,12.50938655,84.804,84.773,0.71421898]
[1771665154546,0.71744085,84.803,84.775,0.71421898]
[1771665160149,11.79215045,84.803,84.775,0.71421898]
[1771665160340,0.70796044,84.802,84.775,0.71421898]
[1771665160742,0.70796044,84.802,84.776,0.6969279]
[1771665166652,2.18704147,84.83,84.781,0.6969279]
[1771665166854,2.18704147,84.83,84.783,0.6969279]
[1771665166855,4.27839476,84.82,84.783,0.6969279]
[1771665168643,0.39257912,84.818,84.785,0.6969279]
[1771665170861,0.39198402,84.816,84.785,0.6969279]
[1771665172445,4.27839476,84.81,84.785,0.6969279]
[1771665172649,0.39142006,84.809,84.786,0.6969279]
[1771665175662,0.39142006,84.809,84.787,0.6969279]
[1771665181551,0.38902932,84.807,84.787,0.6969279]
[1771665181752,0.38902932,84.807,84.785,52.74307481]
[1771665183073,0.38902932,84.807,84.786,0.6969279]
[1771665187373,11.79161851,84.806,84.786,0.6969279]
[1771665188377,11.79063407,84.814,84.787,0.71206584]
[1771665189480,11.78981124,84.819,84.787,0.71206584]
[1771665201088,4.27839476,84.81,84.787,0.71206584]
[1771665207590,4.27839476,84.81,84.789,0.71206584]
[1771665207883,11.79093791,84.811,84.789,0.71206584]
[1771665211088,11.78981124,84.819,84.789,0.71206584]
[1771665218718,4.27745025,84.81,84.785,0.71206584]
[1771665219097,29.47452811,84.819,84.786,0.71206584]
[1771665219618,11.78883832,84.826,84.788,0.71206584]
[1771665219800,4.27745025,84.82,84.788,0.71206584]
[1771665221506,11.78981124,84.819,84.788,0.71206584]
[1771665238414,7.07388674,84.819,84.788,0.71206584]
[1771665245734,0.35688979,84.809,84.775,52.74307481]
[1771665245933,0.35688979,84.807,84.775,52.74307481]
[1771665247637,0.35688979,84.807,84.776,0.69576493]
[1771665248831,0.35644449,84.799,84.776,0.69576493]
[1771665251938,7.07563857,84.798,84.776,0.69576493]
[1771665252121,7.43168572,84.798,84.776,0.69576493]
[1771665254741,0.35400318,84.802,84.776,0.69576493]
[1771665258539,7.07538826,84.801,84.776,0.69576493]
[1771665258837,0.35022964,84.8,84.776,0.69576493]
[1771665260739,0.34841495,84.798,84.764,0.63372713]
[1771665262542,0.34664358,84.789,84.764,0.63372713]
[1771665263438,0.34664358,84.789,84.766,0.63372713]
[1771665265147,0.34490687,84.787,84.766,0.63372713]
[1771665267532,0.34236601,84.785,84.766,0.63372713]
[1771665272350,7.07680694,84.784,84.766,0.63372713]
[1771665273448,11.79467824,84.784,84.766,0.63372713]
[1771665273844,11.79411455,84.789,84.766,0.63372713]
[1771665274146,3.69383402,84.815,84.767,0.63372713]
[1771665274147,11.79259189,84.799,84.767,0.63372713]
[1771665274339,11.79259189,84.799,84.771,0.63372713]
[1771665274541,12.12937278,84.799,84.771,0.63372713]
[1771665274742,0.33678089,84.798,84.771,0.63372713]
[1771665275852,11.79287003,84.797,84.771,0.63372713]
[1771665276036,12.12888953,84.797,84.771,0.63372713]
[1771665276237,29.81506579,84.806,84.771,0.63372713]
[1771665276438,0.33526431,84.805,84.771,0.63372713]
[1771665279355,0.33233252,84.803,84.771,0.63372713]
[1771665279556,0.33233252,84.799,84.771,0.63372713]
[1771665282359,0.33021979,84.797,84.771,0.63372713]
[1771665284738,11.7930091,84.796,84.771,0.63372713]
[1771665284944,0.3288573,84.795,84.771,0.63372713]
[1771665291147,11.79328726,84.794,84.771,0.63372713]
[1771665291350,0.32494709,84.793,84.771,0.63372713]
[1771665291663,4.27953629,84.79,84.771,0.63372713]
[1771665291867,0.3243229,84.789,84.771,0.63372713]
[1771665295371,0.3243229,84.789,84.762,64.54071857]
[1771665295372,0.3243229,84.789,84.764,11.79746118]
[1771665295553,0.3243229,84.789,84.765,0.63363101]
[1771665297957,4.27953629,84.78,84.765,0.63363101]
[1771665298157,0.32071662,84.779,84.754,0.63363101]
[1771665300560,129.828744,84.765,84.754,0.63363101]
[1771665302774,0.61825218,84.789,84.76,4.27953629]
[1771665304268,0.61825218,84.789,84.761,11.79787874]
[1771665306179,0.61825218,84.789,84.762,52.74307481]
[1771665311180,0.61825218,84.789,84.763,11.79760036]
[1771665311981,0.61825218,84.789,84.763,64.54067517]
[1771665317887,0.61825218,84.789,84.755,11.79871394]
[1771665318390,0.61825218,84.789,84.756,0.02105478]
[1771665320296,11.79357925,84.792,84.761,0.02209873]
[1771665320670,12.47092994,84.792,84.761,0.02209873]
[1771665321183,11.79357925,84.792,84.761,0.02209873]
[1771665321395,0.67735069,84.791,84.761,0.02209873]
[1771665322687,0.67735069,84.791,84.761,11.79787874]
[1771665322996,0.67735069,84.791,84.762,0.02516143]
[1771665323992,0.67735069,84.791,84.763,0.02615941]
[1771665324689,0.67735069,84.791,84.763,11.82375977]
[1771665324993,0.67735069,84.799,84.771,0.02713825]
[1771665325289,0.67735069,84.799,84.773,0.02713825]
[1771665329801,0.67735069,84.799,84.774,0.03187135]
[1771665331999,0.67735069,84.799,84.775,0.03369958]
[1771665335689,11.79254391,84.8,84.775,0.03369958]
[1771665336402,0.67735069,84.826,84.791,0.03807494]
[1771665336597,0.67735069,84.826,84.793,0.03807494]
[1771665336784,0.67735069,84.826,84.794,0.03807494]
[1771665337599,0.68102999,84.823,84.794,0.03807494]
[1771665337982,0.68102999,84.829,84.801,0.03978096]
[1771665338579,0.68102999,84.848,84.821,0.04060965]
[1771665339601,0.68102999,84.846,84.821,0.04060965]
[1771665340785,11.78619836,84.845,84.821,0.04060965]
[1771665340986,0.68102999,84.844,84.821,0.04060965]
[1771665341908,0.68102999,84.848,84.831,0.04303794]
[1771665342693,11.78549901,84.851,84.831,0.04303794]
[1771665342893,12.466529,84.851,84.831,0.04303794]
[1771665343103,0.68102999,84.85,84.831,0.04303794]
[1771665343608,0.68102999,84.861,84.831,0.04303794]
[1771665344194,0.1,84.88,84.82,11.78953429]
[1771665344195,0.68102999,84.865,84.841,0.04459795]
[1771665345597,0.68102999,84.872,84.842,0.04613544]
[1771665348401,12.46361768,84.871,84.842,0.04613544]
[1771665348596,0.68102999,84.87,84.842,0.04613544]
[1771665353517,0.68102999,84.87,84.85,4.27829704]
[1771665354323,0.68102999,84.87,84.85,4.33021536]
[1771665354505,0.1,84.88,84.85,4.27829704]
[1771665354815,0.68102999,84.892,84.871,0.05260549]
[1771665355115,0.68102999,84.889,84.871,0.05260549]
[1771665355302,0.68102999,84.901,84.871,0.05260549]
[1771665355503,0.04739789,84.89,84.88,4.27829704]
[1771665358016,0.70365175,84.906,84.881,11.78119956]
[1771665358816,0.1,84.91,84.89,4.27829704]
[1771665359807,0.1,84.91,84.9,4.27829704]
[1771665359999,0.1,84.91,84.89,4.27829704]
[1771665360198,0.1,84.91,84.9,4.27829704]
[1771665361116,47.05368022,85.01,84.929,0.68954937]
[1771665361304,29.41211073,84.999,84.95,4.27829704]
[1771665361504,11.76346033,85.009,84.96,7.58e-06]
[1771665361820,11.76346033,85.009,84.92,4.27829704]
[1771665361821,4.27829704,84.98,84.94,4.27829704]
[1771665362014,11.76761317,84.979,84.941,11.77287764]
[1771665362207,11.76761317,84.979,84.942,0.68954937]
[1771665362718,11.76761317,84.979,84.94,4.27829704]
[1771665362913,4.27829704,84.98,84.95,4.27829704]
[1771665363108,11.76761317,84.979,84.95,4.27829704]
[1771665363310,0.68102999,84.978,84.95,4.27829704]
[1771665364219,0.68102999,84.978,84.951,11.7714918]
[1771665364610,0.68102999,84.978,84.94,4.27829704]
[1771665364812,0.68102999,84.976,84.941,11.77287764]
[1771665365314,0.68102999,84.976,84.941,12.46242701]
[1771665365620,0.68102999,84.976,84.951,0.68954937]
[1771665366410,19.679031,85.012,84.97,4.27829704]
[1771665366614,0.68102999,85.009,84.971,0.68954937]
[1771665367118,0.68102999,84.999,84.961,0.68954937]
[1771665367316,0.68102999,84.999,84.952,41.19973631]
[1771665367317,0.68102999,84.989,84.954,0.68954937]
[1771665367634,0.68102999,84.989,84.961,0.65780346]
[1771665368427,0.68102999,84.989,84.963,0.65780346]
[1771665368798,0.67348448,85.009,84.963,0.65780346]
[1771665369128,0.67348448,85.009,84.971,0.65780346]
[1771665369307,0.70135165,85.008,84.971,0.65780346]
[1771665369513,0.70135165,84.999,84.963,0.69514988]
[1771665370722,0.70135165,84.999,84.965,0.69514988]
[1771665371525,0.70135165,84.999,84.967,0.69514988]
[1771665373820,0.70135165,84.998,84.957,11.77066045]
[1771665374015,0.70135165,84.989,84.957,11.77066045]
[1771665374528,0.70135165,84.979,84.936,0.69514988]
[1771665374828,0.70135165,84.979,84.938,0.69514988]
[1771665375120,0.70135165,84.979,84.941,0.69514988]
[1771665375714,0.70135165,84.969,84.937,12.46858195]
[1771665376030,0.70135165,84.969,84.938,0.69514988]
[1771665378233,0.70135165,84.959,84.925,0.69514988]
[1771665378608,0.70135165,84.949,84.92,0.69514988]
[1771665378831,0.70135165,84.949,84.922,0.69514988]
[1771665380036,0.70135165,84.949,84.924,0.69514988]
[1771665380336,0.70135165,84.969,84.924,0.69514988]
[1771665381334,0.70135165,84.969,84.931,0.69514988]
[1771665381633,0.70135165,84.979,84.941,0.69514988]
[1771665382629,4.27829704,84.97,84.943,0.69514988]
[1771665383937,0.70135165,84.977,84.943,0.69514988]
[1771665384427,0.70135165,84.969,84.943,0.69514988]
[1771665385817,0.70135165,84.968,84.929,0.69514988]
[1771665386017,0.70135165,84.959,84.929,0.69514988]
[1771665386430,0.70135165,84.949,84.92,0.69514988]
[1771665386625,0.70135165,84.949,84.911,0.69514988]
[1771665386821,0.70135165,84.949,84.913,0.69514988]
[1771665387023,0.70135165,84.948,84.913,0.69514988]
[1771665387340,0.70135165,84.939,84.913,0.69514988]
[1771665388332,0.70135165,84.955,84.921,0.69514988]
[1771665388644,0.70135165,84.96,84.921,0.69514988]
[1771665388817,0.70135165,84.96,84.923,0.69514988]
[1771665389137,4.97964869,84.96,84.923,0.69514988]
[1771665390117,4.27829704,84.96,84.923,0.69514988]
[1771665390444,0.70135165,84.958,84.923,0.69514988]
[1771665391523,0.70135165,84.949,84.911,0.69514988]
[1771665392136,0.70135165,84.949,84.913,0.69514988]
[1771665392525,0.70135165,84.959,84.913,0.69514988]
[1771665393551,29.42310599,84.968,84.912,52.74307481]
[1771665393552,0.70135165,84.956,84.915,0.69514988]
[1771665393722,0.70135165,84.956,84.921,0.69514988]
[1771665394940,11.77093755,84.955,84.921,0.69514988]
[1771665398122,12.4640342,84.955,84.923,0.6660551]
[1771665398341,0.69309665,84.954,84.923,0.6660551]
[1771665400643,0.69309665,84.949,84.922,52.74307481]
[1771665400823,0.69309665,84.939,84.911,0.6660551]
[1771665401226,0.69309665,84.939,84.91,52.74307481]
[1771665401424,0.69309665,84.939,84.911,0.6660551]
[1771665402628,0.69309665,84.937,84.911,0.6660551]
[1771665403844,0.69309665,84.937,84.912,52.74307481]
[1771665404141,0.69309665,84.937,84.913,0.6660551]
[1771665404520,11.77357068,84.936,84.913,0.6660551]
[1771665404723,0.69309665,84.935,84.913,0.6660551]
[1771665406447,0.69309665,84.935,84.912,52.74307481]
[1771665408547,11.77384792,84.934,84.912,52.74307481]
[1771665408754,0.69309665,84.933,84.912,52.74307481]
[1771665409333,4.26249185,84.93,84.904,50.60308515]
[1771665409652,4.26249185,84.93,84.905,50.60308515]
[1771665410649,11.77454108,84.929,84.906,0.71816895]
[1771665411632,41.20604522,84.939,84.906,0.71816895]
[1771665412139,11.77315485,84.939,84.911,0.71816895]
[1771665412743,11.77315485,84.939,84.913,0.71816895]
[1771665413854,41.20119129,84.949,84.913,0.71816895]
[1771665414035,4.26249185,84.93,84.914,50.60308515]
[1771665414236,4.26249185,84.93,84.915,42.25367391]
[1771665415249,11.77454108,84.929,84.915,42.25367391]
[1771665415949,11.77232326,84.945,84.916,0.71816895]
[1771665420558,4.26249185,84.94,84.899,0.71816895]
[1771665421550,41.20604198,84.939,84.899,0.71816895]
[1771665423154,11.77315485,84.939,84.901,0.71816895]
[1771665424355,4.26249185,84.96,84.911,0.71816895]
[1771665424548,4.26249185,84.96,84.913,0.71816895]
[1771665424549,11.77038336,84.959,84.913,0.71816895]
[1771665424753,4.26249185,84.95,84.913,0.71816895]
[1771665427165,4.26249185,84.96,84.921,0.71816895]
[1771665427371,11.76973197,84.964,84.931,0.71816895]
[1771665428473,11.7689981,84.969,84.931,0.71816895]
[1771665429552,11.7689981,84.969,84.932,11.77412518]
[1771665429886,11.7689981,84.969,84.933,0.71816895]
[1771665430689,11.7689981,84.969,84.92,4.26249185]
[1771665430690,11.7689981,84.969,84.935,0.71816895]
[1771665433173,11.7689981,84.969,84.937,0.71816895]
[1771665435271,11.7689981,84.969,84.939,0.71816895]
[1771665436459,11.7689981,84.969,84.941,0.71816895]
[1771665437674,4.26249185,84.98,84.941,0.71816895]
[1771665440073,4.26249185,84.97,84.941,0.71816895]
[1771665442386,11.7689981,84.969,84.941,0.71816895]
[1771665442579,29.41499331,84.991,84.943,0.71816895]
[1771665442784,4.26249185,84.98,84.943,0.71816895]
[1771665445987,4.26249185,84.97,84.936,0.71816895]
[1771665446163,41.1866461,84.979,84.938,0.71816895]
[1771665446371,47.02996491,85.053,84.971,0.71816895]
[1771665446596,47.02996491,85.053,84.96,4.26249185]
[1771665446597,0.71718342,85.029,84.98,4.26249185]
[1771665447098,0.71718342,85.019,84.97,4.26249185]
[1771665447273,0.71718342,85.019,84.98,4.26249185]
[1771665448204,0.71718342,85.017,84.981,11.76733622]
[1771665448569,0.71718342,85.017,84.982,0.71603594]
[1771665449980,0.71718342,85.017,84.983,11.76705929]
[1771665450199,0.71718342,85.017,84.984,0.71603594]
[1771665451994,11.76249176,85.016,84.984,0.71603594]
[1771665452186,0.71718342,85.009,84.972,0.71603594]
[1771665452501,0.71718342,85.009,84.974,0.71603594]
[1771665453609,0.71718342,84.999,84.973,42.25367391]
[1771665454108,0.71718342,84.999,84.973,42.96970985]
[1771665454278,0.71718342,84.999,84.975,0.71603594]
[1771665456306,0.71718342,84.999,84.976,11.76802861]
[1771665456480,0.71718342,84.999,84.976,12.48406455]
[1771665456681,0.71718342,84.999,84.977,0.71603594]
[1771665456998,0.71718342,84.999,84.976,11.76802861]
[1771665456999,29.39901781,85.037,84.981,0.71767619]
[1771665457184,4.2584589,85.02,84.981,0.71767619]
[1771665458011,4.2584589,85.01,84.981,0.71767619]
[1771665458184,4.2584589,85.01,84.978,42.25367391]
[1771665458506,4.2584589,85.01,84.981,0.71969561]
[1771665458689,11.7626462,85.015,84.981,0.71969561]
[1771665458881,0.03454011,85.009,84.981,0.71969561]
[1771665463293,0.03454011,85.009,84.982,0.71969561]
[1771665465384,0.03454011,85.009,84.983,11.76705929]
[1771665465581,0.03454011,85.009,84.984,0.71969561]
[1771665465781,11.76346033,85.009,84.984,0.71969561]
[1771665465994,11.81038015,85.009,84.984,0.71969561]
[1771665466605,11.81038015,85.009,84.98,0.71969561]
[1771665466606,4.2584589,85.0,84.98,0.71969561]
[1771665466811,0.04861084,85.008,84.98,0.71969561]
[1771665467791,4.2584589,85.01,84.979,42.25367391]
[1771665467792,4.2584589,85.01,84.982,0.71969561]
[1771665468690,0.05028003,85.014,84.982,0.71969561]
[1771665469491,11.76207671,85.019,84.984,0.71969561]
[1771665469807,0.05356449,85.018,84.984,0.71969561]
[1771665470709,11.76144101,85.024,84.984,0.71969561]
[1771665471400,11.76144101,85.024,84.98,46.51213281]
[1771665471401,0.05516779,85.024,84.986,0.71969561]
[1771665471807,4.2584589,85.02,84.986,0.71969561]
[1771665472890,0.05836039,85.019,84.988,0.71969561]
[1771665475011,0.05836039,85.019,84.99,0.71969561]
[1771665477718,0.05836039,85.019,84.991,0.71969561]
[1771665481109,4.2584589,85.02,84.993,0.71969561]
[1771665481621,4.33019863,85.02,84.993,0.71969561]
[1771665482025,4.2584589,85.02,84.993,0.71969561]
[1771665482317,0.07173973,85.019,84.993,0.71969561]
[1771665483126,11.83381644,85.019,84.993,0.71969561]
[1771665484011,11.76207671,85.019,84.993,0.71969561]
[1771665484707,11.83796584,85.019,84.993,0.71969561]
[1771665484907,0.07588913,85.018,84.993,0.71969561]
[1771665486019,11.76207671,85.019,84.993,0.71969561]
[1771665488719,11.84458013,85.019,84.993,0.71969561]
[1771665489322,0.08250342,85.018,84.993,0.71969561]
[1771665489719,11.76207671,85.019,84.993,0.71969561]
[1771665490398,0.08503919,85.023,84.995,0.72314658]
[1771665491212,0.08503919,85.023,84.997,0.72314658]
[1771665492709,4.34718378,85.02,84.997,0.72314658]
[1771665493607,4.34718378,85.02,84.998,11.7649827]
[1771665493807,4.34718378,85.02,85.0,0.72314658]
[1771665494628,0.08916689,85.019,85.0,0.72314658]
[1771665495522,0.08937695,85.018,85.0,0.72314658]
[1771665495718,0.08937695,85.018,84.999,42.25367391]
[1771665495924,0.08937695,85.014,84.999,42.25367391]
[1771665497411,0.08937695,85.014,84.999,42.97682049]
[1771665497612,0.08979933,85.018,85.0,0.72314658]
[1771665501432,4.2584589,85.02,85.0,0.72314658]
[1771665501627,0.09058262,85.019,85.0,0.72314658]
[1771665504240,4.2584589,85.01,84.989,42.25367391]
[1771665504418,0.72281244,85.009,84.98,11.76741257]
[1771665505436,0.72281244,85.008,84.973,11.76844409]
[1771665506340,0.72281244,85.008,84.974,0.72314658]
[1771665506643,0.72281244,85.008,84.976,0.72314658]
[1771665507739,0.72281244,85.008,84.975,11.7681671]
[1771665507740,0.72281244,85.008,84.978,0.72314658]
[1771665511847,0.72281244,85.006,84.978,0.72314658]
[1771665512235,0.72281244,84.999,84.953,0.72314658]
[1771665512441,0.72281244,84.999,84.954,0.72314658]
[1771665513942,0.72281244,84.999,84.956,0.72314658]
[1771665516350,0.72281244,84.999,84.957,11.77066045]
[1771665516552,0.72281244,84.999,84.958,0.72314658]
[1771665516934,0.72281244,85.024,84.961,0.72314658]
[1771665517134,0.72281244,85.019,84.971,0.72314658]
[1771665517333,0.72281244,85.019,84.981,0.72314658]
[1771665518625,0.73780443,85.017,84.982,0.7497774]
[1771665521136,11.76249176,85.016,84.982,0.7497774]
[1771665521455,0.73780443,85.015,84.984,0.7497774]
[1771665524243,0.73780443,85.013,84.984,0.7497774]
[1771665528460,12.50084964,85.012,84.984,0.7497774]
[1771665528658,11.76304521,85.012,84.984,0.7497774]
[1771665528865,0.73780443,85.011,84.984,0.7497774]
[1771665529841,0.73780443,85.009,84.984,0.7497774]
[1771665530041,0.73780443,85.007,84.984,0.7497774]
[1771665530237,0.73780443,84.999,84.961,0.7497774]
[1771665531642,0.73780443,84.999,84.963,0.7497774]
[1771665532864,4.25867378,84.99,84.963,0.7497774]
[1771665533072,0.73780443,84.989,84.963,0.7497774]
[1771665533668,58.80372802,85.029,84.946,29.43016507]
[1771665533669,0.73780443,84.979,84.955,0.7497774]
[1771665535369,0.73780443,84.989,84.957,0.7497774]
[1771665535536,0.73780443,84.989,84.959,0.7497774]
[1771665537764,4.25867378,84.99,84.96,11.77024482]
[1771665537969,0.73780443,84.997,84.961,0.7497774]
[1771665539266,0.73780443,85.004,84.961,0.7497774]
[1771665539866,4.25867378,85.01,84.963,0.7497774]
[1771665540173,4.25867378,85.01,84.965,0.7497774]
[1771665540381,4.99647821,85.01,84.965,0.7497774]
[1771665540549,0.73780443,84.999,84.965,0.7497774]
[1771665540749,4.25867378,84.99,84.965,0.7497774]
[1771665541459,0.73780443,84.995,84.965,0.7497774]
[1771665541659,16.75983264,85.01,84.965,0.7497774]
[1771665542061,4.99647821,85.01,84.97,4.25867378]
[1771665542267,0.73780443,85.009,84.971,0.7497774]
[1771665544459,0.73780443,85.009,84.973,0.7497774]
[1771665546153,0.73780443,85.009,84.975,0.7497774]
[1771665546454,0.73780443,84.999,84.977,0.7497774]
[1771665548076,0.73780443,84.999,84.974,42.25367391]
[1771665550759,0.71363002,84.989,84.974,41.47702436]
[1771665550959,0.71363002,84.989,84.963,11.76973838]
[1771665551477,0.71363002,84.989,84.963,12.52728298]
[1771665551776,0.71363002,84.989,84.954,29.42740807]
[1771665551777,0.71363002,84.989,84.957,0.7575446]
[1771665551981,4.31942843,84.98,84.957,0.7575446]
[1771665553180,0.06174597,84.979,84.957,0.7575446]
[1771665559565,0.06842835,84.984,84.957,0.7575446]
[1771665562674,0.06842835,84.984,84.959,0.7575446]
[1771665566188,4.25867378,84.99,84.961,0.7575446]
[1771665568095,0.07544073,84.989,84.961,0.7575446]
[1771665568276,0.07544073,84.989,84.963,0.7575446]
[1771665568987,0.07626329,84.988,84.963,0.7575446]
[1771665580713,0.07626329,84.988,84.965,0.74740926]
[1771665581786,0.07626329,84.988,84.96,0.74740926]
[1771665584910,0.07626329,84.988,84.962,0.74740926]
[1771665587911,0.09100153,84.989,84.964,0.74740926]
[1771665589592,4.25974712,84.99,84.964,0.74740926]
[1771665591416,4.35267757,84.99,84.964,0.74740926]
[1771665591707,4.25974712,84.99,84.964,0.74740926]
[1771665593115,4.35392048,84.99,84.964,0.74740926]
[1771665593621,0.09477934,84.989,84.964,0.74740926]
[1771665597315,0.09477934,84.989,84.966,0.74740926]